bitfinex/quotes_ETHUSD_20250731
["timestamp","ask_amount","ask_price","bid_price","bid_amount"]
[1753977607243,0.04,3792.9,3792.7,0.55]
[1753977607417,0.04,3792.9,3792.8,5.264]
[1753977608027,0.04,3792.9,3792.8,8.26447456]
[1753977608234,0.04,3792.9,3792.8,6.68122018]
[1753977609310,2.67650504,3792.9,3792.8,5.264]
[1753977609536,0.9417,3792.9,3792.8,5.264]
[1753977609816,3.57820504,3792.9,3792.8,5.264]
[1753977610015,0.9417,3792.9,3792.8,5.264]
[1753977610228,0.04,3792.9,3792.8,5.264]
[1753977610431,3.57820504,3792.9,3792.8,5.264]
[1753977610630,4.47088027,3792.9,3792.8,5.264]
[1753977611449,2.63670117,3792.7,3792.4,4.563]
[1753977611651,2.63678312,3792.5,3792.4,4.562]
[1753977611832,2.63721688,3791.9,3791.2,2.63766041]
[1753977612025,3.09535321,3792.0,3791.4,0.55]
[1753977612240,0.9017,3792.0,3791.5,4.557]
[1753977612563,2.63733945,3791.7,3791.6,4.485]
[1753977612763,3.57200619,3791.7,3791.6,4.485]
[1753977612941,3.67103945,3791.7,3791.6,4.485]
[1753977613762,2.63789601,3790.9,3790.1,0.04]
[1753977613935,0.132,3790.6,3790.2,4.057]
[1753977614141,0.5902,3790.6,3790.2,4.057]
[1753977614362,3.22832021,3790.6,3790.2,4.057]
[1753977614659,0.5902,3790.6,3790.2,4.057]
[1753977614861,0.132,3790.6,3790.2,4.8438]
[1753977615034,0.132,3790.6,3790.3,0.3639]
[1753977615234,0.132,3790.6,3790.5,0.55]
[1753977615449,0.132,3790.6,3790.5,4.606]
[1753977616225,0.132,3790.6,3790.5,7.60807438]
[1753977616433,0.4609,3791.4,3790.5,7.60807438]
[1753977616434,0.132,3791.0,3790.5,5.91882857]
[1753977616634,0.132,3791.0,3790.6,0.55]
[1753977616860,0.132,3791.0,3790.9,3.18789601]
[1753977617064,0.132,3791.0,3790.9,4.607]
[1753977617422,0.4609,3791.2,3791.0,0.55]
[1753977617626,2.63756786,3791.4,3791.2,0.55]
[1753977618050,0.132,3791.3,3791.2,0.55]
[1753977618226,1.0527,3791.3,3791.2,0.55]
[1753977618664,1.29922559,3791.3,3791.2,0.55]
[1753977618847,1.0527,3791.3,3791.2,0.55]
[1753977619054,3.6903177,3791.3,3791.2,0.55]
[1753977619250,1.29924008,3791.3,3791.2,0.55]
[1753977619427,1.0527,3791.3,3791.2,4.606]
[1753977619629,0.04,3792.9,3791.3,0.55]
[1753977619885,2.6367136,3792.6,3791.6,0.55]
[1753977620096,4.05036681,3792.5,3791.8,0.55]
[1753977620243,3.16265301,3792.4,3792.0,0.55]
[1753977620431,0.49283884,3792.3,3792.0,0.55]
[1753977620764,4.0505339,3792.2,3792.1,4.516]
[1753977620926,4.0505339,3792.2,3792.1,4.512]
[1753977621960,1.16711942,3792.2,3792.1,4.512]
[1753977622160,0.24641942,3792.2,3792.1,5.062]
[1753977622337,2.63675821,3792.6,3792.2,0.55]
[1753977622694,3.34403098,3792.5,3792.3,4.518]
[1753977622865,0.24633743,3792.4,3792.3,4.518]
[1753977623033,2.88319008,3792.4,3792.3,4.518]
[1753977623238,4.18427909,3792.4,3792.3,4.518]
[1753977625259,0.24633743,3792.4,3792.3,4.518]
[1753977625438,0.24633743,3792.5,3792.3,4.518]
[1753977625641,0.24633743,3792.5,3792.4,3.55075265]
[1753977625838,0.04,3792.9,3792.4,3.55075265]
[1753977626077,0.04,3792.9,3792.6,0.55]
[1753977626377,0.53265567,3792.9,3792.7,4.525]
[1753977626578,0.49265567,3792.8,3792.7,5.075]
[1753977626995,4.04993023,3792.8,3792.7,4.525]
[1753977627348,2.6366944,3792.7,3792.1,3.1870601]
[1753977627565,0.24633743,3792.6,3792.3,0.55]
[1753977627744,0.9207,3792.8,3792.5,0.55]
[1753977627953,0.4927057,3792.7,3792.6,4.475]
[1753977628779,0.24635285,3792.7,3792.6,4.475]
[1753977629083,0.04,3792.9,3792.7,0.55]
[1753977629287,0.04,3792.9,3792.8,5.032]
[1753977630583,0.04,3792.9,3792.8,5.043]
[1753977631383,0.28632366,3792.9,3792.8,5.043]
[1753977632586,0.04,3792.9,3792.8,4.493]
[1753977632758,3.26940504,3792.9,3792.8,4.493]
[1753977632959,0.172,3792.9,3792.8,4.493]
[1753977633781,0.41828137,3792.9,3792.8,4.493]
[1753977634287,3.51568641,3792.9,3792.8,4.493]
[1753977634649,0.87918137,3792.9,3792.8,4.493]
[1753977635190,0.6329,3792.9,3792.8,4.493]
[1753977635587,0.41825487,3792.9,3792.8,4.493]
[1753977635789,3.82112261,3792.9,3792.8,4.493]
[1753977636086,4.28092261,3792.9,3792.8,4.493]
[1753977636258,2.63677893,3792.6,3792.0,0.55]
[1753977636459,0.132,3792.4,3792.1,4.163]
[1753977636988,0.4609,3792.3,3792.1,4.163]
[1753977637184,0.132,3792.4,3792.1,4.163]
[1753977637404,0.4609,3792.3,3792.1,4.163]
[1753977638359,0.132,3792.4,3792.1,4.163]
[1753977638689,0.5929,3792.4,3792.1,4.163]
[1753977639560,3.22975484,3792.4,3792.1,4.163]
[1753977639961,0.5929,3792.4,3792.1,4.163]
[1753977640297,0.132,3792.4,3792.1,4.163]
[1753977640811,2.67650842,3792.9,3792.2,0.3639]
[1753977640971,0.132,3792.6,3792.3,7.35091901]
[1753977641166,0.132,3792.6,3792.5,0.55]
[1753977641372,0.132,3792.6,3792.5,4.72]
[1753977641579,0.132,3792.6,3792.5,5.0839]
[1753977641774,0.132,3792.6,3792.5,4.72]
[1753977641977,0.04,3792.9,3792.5,4.72]
[1753977642164,2.76859171,3792.8,3792.5,4.72]
[1753977642464,0.5929,3792.8,3792.5,4.72]
[1753977642660,1.0527,3792.8,3792.5,4.72]
[1753977643274,0.5929,3792.8,3792.5,4.72]
[1753977643473,0.04,3792.9,3792.7,0.55]
[1753977643683,0.04,3792.9,3792.8,4.183]
[1753977644068,0.28618574,3792.9,3792.8,4.183]
[1753977644600,0.74708574,3792.9,3792.8,4.183]
[1753977645007,0.28618574,3792.9,3792.8,4.183]
[1753977646297,0.28618574,3792.9,3792.8,7.56325772]
[1753977647002,0.28618574,3792.9,3792.8,4.92668316]
[1753977647183,0.28618574,3792.9,3792.8,7.56325772]
[1753977647903,0.04,3792.9,3792.8,7.56325772]
[1753977649604,0.04,3792.9,3792.8,4.92668316]
[1753977649929,0.04,3792.9,3792.8,4.183]
[1753977650778,0.04,3792.9,3792.8,6.81957456]
[1753977651076,0.04,3792.9,3792.8,7.36957456]
[1753977651413,0.04,3792.9,3792.8,8.11907456]
[1753977652901,0.04,3792.9,3792.8,7.86547456]
[1753977653208,0.04,3792.9,3792.8,9.87797419]
[1753977653573,0.04,3792.9,3792.8,10.13157419]
[1753977654386,0.04,3792.9,3792.8,9.87797419]
[1753977655277,0.04,3792.9,3792.8,4.759]
[1753977655476,0.9518,3792.9,3792.8,4.759]
[1753977655680,1.19850775,3792.9,3792.3,4.201]
[1753977655976,2.63671615,3792.6,3792.4,4.197]
[1753977656177,2.63671615,3792.6,3792.5,4.216]
[1753977656411,0.04,3792.9,3792.5,4.216]
[1753977656624,0.28689095,3792.9,3792.5,4.216]
[1753977656829,0.9118,3792.8,3792.5,4.216]
[1753977656991,0.24689095,3792.7,3792.5,4.216]
[1753977657191,0.24689095,3792.6,3792.5,6.05339091]
[1753977657398,0.24689095,3792.6,3792.5,9.24017403]
[1753977657599,0.04,3792.9,3792.6,2.63668706]
[1753977657798,0.04,3792.9,3792.7,4.271]
[1753977658019,0.04,3792.9,3792.8,4.271]
[1753977658399,0.28696344,3792.9,3792.8,6.90757456]
[1753977658595,0.04,3792.9,3792.8,8.54257007]
[1753977659130,0.04,3792.9,3792.8,9.71007007]
[1753977660114,0.04,3792.9,3792.8,12.71007007]
[1753977661733,0.04,3792.9,3792.8,12.90565047]
[1753977662922,0.04,3792.9,3792.8,12.45647007]
[1753977663243,0.04,3793.9,3792.8,12.45647007]
[1753977663244,0.04,3793.9,3793.8,6.18587959]
[1753977663532,0.04,3793.9,3793.8,19.13894642]
[1753977665329,0.04,3793.9,3793.8,19.50284642]
[1753977665838,0.04,3793.9,3793.2,4.25]
[1753977665994,0.45,3793.8,3793.4,0.55]
[1753977666197,0.4618,3793.8,3793.7,2.63594907]
[1753977666437,0.4618,3793.8,3793.7,6.83494907]
[1753977666623,0.04,3793.9,3793.8,2.63587959]
[1753977666936,0.04,3793.9,3793.8,3.18587959]
[1753977667143,0.04,3793.9,3793.7,4.199]
[1753977667438,0.9118,3793.8,3793.7,2.76792518]
[1753977667636,0.9118,3793.8,3793.7,4.069]
[1753977668053,0.4618,3793.8,3793.7,6.70494907]
[1753977668208,0.4618,3793.8,3793.7,4.069]
[1753977668617,0.4618,3793.8,3793.7,4.201]
[1753977669031,0.4618,3793.8,3793.7,11.08694907]
[1753977669238,0.4618,3793.8,3793.7,8.451]
[1753977669441,0.4618,3793.8,3793.7,11.08694907]
[1753977669800,0.04,3793.9,3793.8,2.63587959]
[1753977670537,0.5018,3793.9,3793.8,2.63587959]
[1753977671125,0.04,3793.9,3793.8,2.63587959]
[1753977671649,0.04,3793.9,3793.8,3.19417551]
[1753977671853,0.04,3793.9,3793.8,3.55807551]
[1753977672035,0.04,3793.9,3793.8,4.70839821]
[1753977672216,0.04,3793.9,3793.8,4.34449821]
[1753977672412,0.04,3793.9,3793.8,4.47649821]
[1753977672722,0.04,3793.9,3793.8,4.46820229]
[1753977673132,0.04,3793.9,3793.8,3.91820229]
[1753977673313,0.04,3793.9,3793.8,4.46820229]
[1753977674514,0.04,3793.9,3793.8,4.47649821]
[1753977675117,0.04,3793.9,3793.8,4.46820229]
[1753977675319,0.04,3793.9,3793.8,5.09399821]
[1753977675652,0.04,3793.9,3793.8,4.46820229]
[1753977678532,0.9468,3793.9,3793.8,4.46820229]
[1753977678759,0.9468,3793.9,3793.8,8.53020229]
[1753977678933,0.9468,3793.9,3793.8,0.132]
[1753977679140,0.9468,3793.9,3793.8,8.444]
[1753977679354,0.9468,3793.9,3793.8,8.312]
[1753977679860,3.58261011,3793.9,3793.8,4.062]
[1753977680048,0.9468,3793.9,3793.8,4.062]
[1753977681752,3.58261011,3793.9,3793.8,4.062]
[1753977682075,2.63594907,3793.7,3793.6,4.25]
[1753977682246,3.67474907,3793.7,3793.6,8.314]
[1753977682800,3.92090424,3793.7,3793.6,8.314]
[1753977682949,3.67474907,3793.7,3793.6,8.314]
[1753977683344,3.92090999,3793.7,3793.6,4.064]
[1753977683546,4.61772917,3793.7,3793.6,4.064]
[1753977683755,1.28496092,3793.7,3793.6,4.064]
[1753977684071,1.15296092,3793.7,3793.6,4.064]
[1753977684564,3.92090999,3793.7,3793.6,4.064]
[1753977684737,2.6360191,3793.6,3792.8,4.25]
[1753977684939,0.132,3793.3,3792.9,8.313]
[1753977685183,0.9068,3793.2,3793.0,4.066]
[1753977685333,0.9068,3793.1,3792.8,4.25]
[1753977685533,0.93975544,3793.0,3792.9,4.065]
[1753977685794,3.54323553,3793.0,3792.9,4.065]
[1753977686067,2.63650504,3792.9,3792.8,4.25]
[1753977686274,3.57626135,3792.9,3792.8,8.316]
[1753977686432,3.54330504,3792.9,3792.8,8.316]
[1753977687758,3.78964743,3792.9,3792.8,8.316]
[1753977688688,0.72504239,3792.9,3792.8,8.316]
[1753977689095,1.15314239,3792.9,3792.8,8.316]
[1753977689395,0.9068,3792.9,3792.8,8.316]
[1753977689699,0.4787,3792.9,3792.8,8.316]
[1753977690000,0.132,3793.0,3792.8,8.316]
[1753977690172,0.132,3793.0,3792.8,9.1608]
[1753977690362,0.132,3793.0,3792.9,3.00040504]
[1753977690559,2.63609862,3793.5,3792.8,9.1608]
[1753977690758,0.24614641,3793.4,3792.9,0.132]
[1753977690959,2.76802704,3793.6,3793.1,0.132]
[1753977691294,0.9068,3793.4,3793.2,4.066]
[1753977691793,0.4787,3793.3,3793.2,4.066]
[1753977691967,3.54302703,3793.3,3793.2,4.066]
[1753977692173,3.67502703,3793.3,3793.2,4.066]
[1753977692371,1.0388,3793.3,3793.2,4.066]
[1753977692588,3.67504749,3793.3,3793.2,4.065]
[1753977692777,4.04255224,3793.3,3793.2,4.065]
[1753977693355,3.0,3793.0,3792.2,4.064]
[1753977693595,2.63685265,3792.4,3792.3,4.064]
[1753977693764,2.63685265,3792.4,3792.3,4.074]
[1753977693964,3.54365265,3792.4,3792.3,4.074]
[1753977694376,2.63700214,3792.2,3791.8,4.25]
[1753977694601,3.54380214,3792.2,3791.9,4.499]
[1753977695086,0.9068,3792.2,3792.0,4.073]
[1753977695696,2.63661279,3792.8,3792.1,2.63704083]
[1753977695902,0.4787,3793.8,3792.4,8.88406683]
[1753977696096,0.4787,3793.6,3792.5,9.58461684]
[1753977696296,3.12799364,3793.5,3792.7,2.63657804]
[1753977696501,0.2459528,3793.4,3792.8,4.076]
[1753977696811,2.63617373,3793.4,3792.8,4.076]
[1753977696967,2.63617373,3793.4,3792.9,0.4076]
[1753977697168,2.6362357,3793.3,3793.0,8.325]
[1753977697907,3.11487845,3793.4,3793.0,8.325]
[1753977698110,2.6362302,3793.3,3793.0,8.325]
[1753977698402,3.11488003,3793.4,3793.0,8.325]
[1753977698605,2.63617965,3793.4,3793.0,8.325]
[1753977698780,0.9068,3793.7,3793.1,0.87326]
[1753977698985,0.5187,3793.9,3793.2,4.075]
[1753977699192,2.63610302,3793.5,3793.2,4.075]
[1753977699393,0.5187,3793.9,3793.2,4.075]
[1753977699394,2.63599197,3793.7,3793.2,4.075]
[1753977699706,2.63614724,3793.5,3793.2,4.075]
[1753977699902,2.63603772,3793.6,3793.2,4.075]
[1753977700710,2.62905229,3793.6,3793.2,4.075]
[1753977701007,0.04,3793.9,3793.2,5.7061571]
[1753977701213,2.63594907,3793.7,3793.2,5.7061571]
[1753977701410,0.04,3793.9,3793.4,8.88406683]
[1753977701708,0.04,3793.9,3793.5,4.071]
[1753977701908,0.04,3793.9,3793.8,2.63587959]
[1753977702109,0.04,3793.9,3793.8,10.95687959]
[1753977703277,0.04,3793.9,3793.8,11.08887959]
[1753977703687,0.04,3793.9,3793.3,4.25]
[1753977703898,2.63595029,3793.7,3793.4,4.081]
[1753977704114,0.4787,3793.6,3793.4,4.081]
[1753977704288,0.04,3793.9,3793.4,5.001426]
[1753977704492,0.9068,3793.8,3793.4,5.001426]
[1753977704813,0.4787,3793.7,3793.4,5.001426]
[1753977705014,0.9068,3793.7,3793.4,4.081]
[1753977706482,0.9258,3793.6,3793.4,4.081]
[1753977706881,0.9258,3793.5,3793.3,4.25]
[1753977707182,0.9258,3793.4,3793.3,4.25]
[1753977707382,0.9258,3793.4,3793.3,8.331]
[1753977707712,3.56195753,3793.4,3793.3,8.331]
[1753977708612,3.56195753,3793.4,3793.3,4.081]
[1753977709715,0.9258,3793.4,3792.8,4.25]
[1753977709906,2.63640578,3793.1,3792.9,4.25]
[1753977710097,2.63636603,3793.1,3793.0,4.08]
[1753977710687,3.56216603,3793.1,3793.0,4.08]
[1753977711219,2.63643553,3793.0,3792.9,4.25]
[1753977711517,3.56223553,3793.0,3792.9,8.329]
[1753977712118,2.63631315,3793.2,3792.9,8.329]
[1753977712506,2.63643553,3793.0,3792.9,8.329]
[1753977712707,3.10108742,3793.1,3792.9,8.329]
[1753977712909,3.56223553,3793.0,3792.9,8.329]
[1753977713709,3.69423553,3793.0,3792.9,8.329]
[1753977714325,1.0578,3793.0,3792.9,8.329]
[1753977714632,1.0578,3793.0,3792.9,4.079]
[1753977715116,3.22953553,3793.0,3792.9,4.079]
[1753977715324,3.1009433,3793.3,3792.9,8.88406683]
[1753977715325,0.132,3793.3,3792.9,8.88406683]
[1753977715529,2.76823337,3793.3,3792.5,4.25]
[1753977715821,2.63642619,3793.1,3792.6,4.208]
[1753977716120,0.132,3792.9,3792.6,4.076]
[1753977716891,0.5931,3792.9,3792.6,4.076]
[1753977717089,0.132,3792.9,3792.6,4.076]
[1753977719410,0.132,3792.9,3792.6,4.4399]
[1753977719602,0.132,3792.9,3792.6,7.07659319]
[1753977719804,0.132,3792.9,3792.6,8.51149742]
[1753977720003,0.132,3792.9,3792.6,5.87480423]
[1753977720218,2.63622137,3793.4,3792.7,11.52069515]
[1753977720438,0.132,3793.3,3793.2,11.52036336]
[1753977720610,0.132,3793.3,3793.2,16.21186336]
[1753977720934,0.24653073,3793.8,3793.2,16.21186336]
[1753977720935,0.24653073,3793.8,3793.7,2.63594907]
[1753977721136,0.04,3793.9,3793.8,2.63587959]
[1753977721636,0.04,3793.9,3793.3,4.078]
[1753977721637,2.63591977,3793.8,3793.3,4.078]
[1753977721846,0.4611,3793.8,3793.5,2.63603226]
[1753977722047,0.04,3793.9,3793.5,2.63603226]
[1753977722198,0.28649695,3793.9,3793.6,4.084]
[1753977722398,0.04,3793.9,3793.6,4.09229864]
[1753977722598,0.04,3793.9,3793.6,4.084]
[1753977722837,0.9258,3793.8,3793.6,4.084]
[1753977723025,0.4611,3793.7,3793.6,4.084]
[1753977723226,1.17228523,3793.7,3793.6,4.084]
[1753977723668,1.17228523,3793.7,3792.8,4.25]
[1753977723806,0.24648523,3793.6,3792.9,4.65249042]
[1753977724155,0.24648523,3793.6,3793.0,4.083]
[1753977724370,0.04,3793.9,3793.0,7.0832911]
[1753977724371,2.63595953,3793.7,3793.0,7.0832911]
[1753977724660,0.24656416,3793.6,3793.0,7.0832911]
[1753977724864,2.63608835,3793.5,3793.0,4.083]
[1753977725046,0.4611,3793.5,3793.0,4.083]
[1753977725248,0.4647,3793.8,3793.2,2.63629181]
[1753977725453,0.04,3793.9,3793.4,2.63613116]
[1753977725666,0.04,3793.9,3793.8,2.63587959]
[1753977725832,0.04,3793.9,3793.8,6.71987959]
[1753977726283,0.04,3793.9,3793.8,7.08377959]
[1753977726560,0.04,3793.9,3793.8,8.10555944]
[1753977726723,0.04,3793.9,3793.8,12.12195944]
[1753977726920,0.04,3793.9,3793.8,11.75805944]
[1753977727885,0.04,3793.9,3793.8,8.03795944]
[1753977728171,0.04,3793.9,3793.8,12.12295944]
[1753977728330,0.04,3793.9,3793.8,8.353]
[1753977728532,0.5011,3793.9,3793.8,8.353]
[1753977728731,0.04,3793.9,3793.8,8.353]
[1753977729028,0.9658,3793.9,3793.8,8.353]
[1753977730172,3.60161011,3793.9,3793.8,8.353]
[1753977730683,0.9658,3793.9,3793.8,8.353]
[1753977732785,0.9658,3793.9,3793.6,0.132]
[1753977732936,2.63594907,3793.7,3793.6,0.132]
[1753977733141,2.63608804,3793.5,3793.4,4.084]
[1753977733335,3.69388804,3793.5,3793.4,4.086]
[1753977733555,1.0578,3793.5,3792.8,4.27]
[1753977733765,2.76843553,3793.0,3792.9,8.356]
[1753977734096,3.69423553,3793.0,3792.9,8.356]
[1753977734434,3.69423553,3793.0,3792.9,4.27]
[1753977734675,3.69423553,3793.0,3792.9,8.355]
[1753977734869,3.69423553,3793.0,3792.9,4.27]
[1753977735087,3.69423553,3793.0,3792.9,8.355]
[1753977735875,1.0578,3793.0,3792.9,8.355]
[1753977736277,3.69423553,3793.0,3792.9,8.355]
[1753977738181,3.69423553,3793.0,3792.9,4.085]
[1753977738676,2.63664407,3792.7,3792.6,4.3]
[1753977738879,2.63664407,3792.7,3792.6,8.382]
[1753977738880,0.9072,3792.7,3792.6,8.382]
[1753977739448,3.54384407,3792.7,3792.6,8.382]
[1753977739844,0.9072,3792.7,3792.6,8.382]
[1753977740073,0.132,3792.8,3792.6,8.382]
[1753977740339,2.63631694,3793.2,3792.7,0.8382]
[1753977740578,0.4514,3793.1,3792.8,4.081]
[1753977740881,2.63650351,3793.0,3792.9,4.09]
[1753977741053,0.9072,3793.0,3792.9,4.09]
[1753977741254,0.132,3793.0,3792.9,4.09]
[1753977741484,3.67563553,3793.0,3792.9,4.09]
[1753977741780,1.91698803,3793.0,3792.9,4.091]
[1753977741990,4.55342356,3793.0,3792.9,4.091]
[1753977742192,2.63680597,3792.5,3792.2,4.3]
[1753977742358,2.63680597,3792.5,3792.3,4.09]
[1753977742560,0.4558,3792.4,3792.3,4.09]
[1753977742755,0.9072,3792.4,3792.3,4.09]
[1753977743288,3.54405265,3792.4,3792.3,4.09]
[1753977743474,0.9072,3792.4,3792.3,4.09]
[1753977743781,0.132,3792.5,3792.3,4.09]
[1753977744085,0.4514,3793.3,3792.3,5.3061]
[1753977744381,0.132,3792.8,3792.3,4.9422]
[1753977745084,2.7685769,3792.8,3792.3,4.9422]
[1753977745886,0.132,3792.8,3792.3,4.9422]
[1753977746581,0.132,3792.8,3792.3,7.57910703]
[1753977746798,0.132,3792.8,3792.4,1.50120522]
[1753977746944,0.132,3792.8,3792.5,4.086]
[1753977747150,0.132,3792.8,3792.6,4.28]
[1753977747345,2.76857456,3792.8,3792.7,4.086]
[1753977747966,0.132,3792.8,3792.7,4.086]
[1753977748543,2.76857456,3792.8,3792.7,4.086]
[1753977748750,0.132,3792.8,3792.7,4.086]
[1753977749294,2.76857456,3792.8,3792.7,4.086]
[1753977749477,3.21997456,3792.8,3792.7,4.086]
[1753977749787,0.5834,3792.8,3792.7,4.086]
[1753977750088,0.5834,3792.8,3792.7,8.366]
[1753977750419,3.21997456,3792.8,3792.7,8.366]
[1753977750692,4.26141656,3792.8,3792.7,8.363]
[1753977750988,3.92222912,3792.8,3792.7,8.363]
[1753977751283,3.67577456,3792.8,3792.7,8.363]
[1753977755092,1.0392,3792.8,3792.7,8.363]
[1753977755401,2.76857456,3792.8,3792.7,8.363]
[1753977755798,3.67577456,3792.8,3792.7,8.363]
[1753977756088,3.67577456,3792.8,3792.7,4.083]
[1753977756289,2.76857456,3792.8,3792.7,4.083]
[1753977756893,0.132,3792.8,3792.7,4.083]
[1753977757097,0.132,3792.8,3792.7,4.4913]
[1753977757665,0.24636792,3793.1,3792.7,7.12794407]
[1753977757914,0.132,3793.5,3792.9,2.63645159]
[1753977758057,0.132,3793.5,3793.0,8.49]
[1753977758258,0.37835391,3793.5,3793.1,4.28]
[1753977758497,0.24635391,3793.4,3793.2,5.86110227]
[1753977758672,0.24635391,3793.3,3793.2,5.85279668]
[1753977758877,0.132,3793.7,3793.2,5.85279668]
[1753977758878,0.132,3793.7,3793.3,2.63621509]
[1753977759205,0.132,3793.7,3793.4,4.079]
[1753977759700,0.24638108,3793.8,3793.5,2.63604411]
[1753977759995,0.24638108,3793.7,3793.6,4.75050441]
[1753977760182,0.28638108,3793.9,3793.6,7.75036156]
[1753977760501,0.28638108,3793.9,3793.7,2.6359378]
[1753977760796,0.04,3793.9,3793.8,10.99487959]
[1753977760999,0.04,3793.9,3793.8,11.74437959]
[1753977761216,0.04,3793.9,3793.8,12.69120228]
[1753977761558,0.04,3793.9,3793.8,9.80172269]
[1753977761771,0.04,3793.9,3793.8,9.43782269]
[1753977762180,0.18645348,3794.3,3793.8,9.30582269]
[1753977762374,0.18645348,3794.2,3794.0,0.132]
[1753977762621,2.63547167,3794.4,3794.1,4.078]
[1753977762778,0.5834,3794.5,3794.1,4.078]
[1753977762779,2.76740394,3794.5,3794.1,4.078]
[1753977762974,0.9072,3794.3,3794.1,4.078]
[1753977763486,0.4558,3794.3,3794.1,4.078]
[1753977763721,0.132,3794.5,3794.1,4.078]
[1753977763919,0.834414,3794.5,3794.1,4.078]
[1753977764079,1.153814,3794.4,3794.1,4.078]
[1753977764279,0.698014,3794.3,3794.1,4.078]
[1753977764481,3.08693394,3794.3,3794.1,4.078]
[1753977764691,0.132,3794.5,3794.2,4.28]
[1753977764891,3.46542792,3794.5,3794.3,4.076]
[1753977765091,0.24662816,3794.4,3794.3,4.076]
[1753977765301,3.78929094,3794.4,3794.3,4.076]
[1753977766116,1.15382816,3794.4,3794.3,4.076]
[1753977766289,0.69802816,3794.4,3794.3,4.076]
[1753977766490,2.88209094,3794.4,3794.3,4.076]
[1753977767017,3.80159094,3794.4,3794.3,4.076]
[1753977767879,3.80159094,3794.4,3794.3,8.356]
[1753977768077,3.80159094,3794.4,3794.3,4.28]
[1753977768282,4.45848253,3794.4,3794.3,8.353]
[1753977768884,4.45837364,3794.4,3794.3,8.353]
[1753977769304,3.80148205,3794.4,3794.3,8.353]
[1753977770836,3.01398205,3794.4,3794.3,8.353]
[1753977771194,0.37851927,3794.4,3794.3,8.353]
[1753977771397,2.76744038,3794.5,3794.3,8.353]
[1753977773024,2.63546278,3794.4,3794.3,8.353]
[1753977773589,2.6353094,3794.7,3794.3,8.353]
[1753977773803,2.7673094,3794.7,3794.4,4.28]
[1753977774029,2.63532388,3794.6,3794.5,4.068]
[1753977774219,2.88156176,3794.6,3794.5,4.068]
[1753977774728,3.33416176,3794.6,3794.5,4.068]
[1753977775132,3.80106176,3794.6,3794.5,4.068]
[1753977777532,3.68696278,3794.4,3794.3,8.346]
[1753977778939,3.22006278,3794.4,3794.3,8.346]
[1753977779438,2.76746278,3794.4,3794.3,8.346]
[1753977780343,3.68696278,3794.4,3794.3,8.346]
[1753977780635,2.63532799,3794.6,3794.3,8.346]
[1753977780841,2.76740212,3794.5,3794.3,8.346]
[1753977781039,0.04,3794.9,3794.4,4.28]
[1753977781341,0.28613793,3794.9,3794.5,4.063]
[1753977781506,2.63519086,3794.8,3794.5,4.063]
[1753977781708,2.63527271,3794.7,3794.5,4.063]
[1753977781918,0.04,3794.9,3794.5,4.063]
[1753977781919,2.67514362,3794.9,3794.5,4.063]
[1753977782243,2.67512312,3794.9,3794.5,4.063]
[1753977782544,0.24613394,3794.8,3794.5,4.063]
[1753977782951,2.67511751,3794.9,3794.5,4.063]
[1753977783244,2.63527142,3794.7,3794.5,4.063]
[1753977783458,3.14203382,3794.9,3794.5,4.063]
[1753977783751,0.24617216,3794.8,3794.5,4.063]
[1753977784055,0.04,3794.9,3794.5,5.03167]
[1753977784280,0.28623209,3794.9,3794.5,5.03167]
[1753977784541,2.92136352,3794.9,3794.5,5.03167]
[1753977784758,0.24623209,3794.8,3794.5,5.03167]
[1753977784960,2.63532388,3794.6,3794.5,4.063]
[1753977785255,0.4526,3794.6,3794.5,4.063]
[1753977785461,2.63532388,3794.6,3794.5,4.063]
[1753977785660,3.08792388,3794.6,3794.5,4.063]
[1753977785803,3.55482388,3794.6,3794.5,4.063]
[1753977786408,0.9195,3794.6,3794.5,4.063]
[1753977786609,3.55482388,3794.6,3794.5,4.063]
[1753977787242,3.80131586,3794.6,3794.5,4.063]
[1753977787442,2.63553224,3794.3,3794.2,4.28]
[1753977787757,2.63553224,3794.3,3794.2,8.339]
[1753977787758,0.9195,3794.3,3794.2,8.339]
[1753977789132,3.55503224,3794.3,3794.2,4.28]
[1753977789344,0.9195,3794.3,3794.2,8.34]
[1753977789514,0.4526,3794.3,3794.2,8.34]
[1753977789851,0.04,3794.9,3794.2,8.34]
[1753977789852,2.6751822,3794.9,3794.2,9.4679]
[1753977790052,0.24666313,3794.8,3794.4,0.132]
[1753977790262,0.24666313,3794.8,3794.5,4.062]
[1753977790641,0.24666313,3794.8,3794.5,8.272]
[1753977791019,0.69926313,3794.8,3794.5,8.272]
[1753977791218,0.24666313,3794.7,3794.5,8.272]
[1753977792250,2.63532388,3794.6,3794.5,8.272]
[1753977792457,0.24666313,3794.6,3794.5,8.272]
[1753977793127,2.8818903,3794.8,3794.5,8.272]
[1753977793335,0.24666313,3794.7,3794.5,8.272]
[1753977793547,0.24666313,3794.7,3794.5,4.9858]
[1753977793752,0.04,3794.9,3794.5,4.9858]
[1753977793933,0.9195,3794.8,3794.5,4.9858]
[1753977794139,0.69932082,3794.7,3794.5,4.9858]
[1753977794369,0.24672082,3794.6,3794.5,4.9858]